[Event "Early-Titled-Tuesday-Blitz-February-06-2024"]
[Site "Chess.com"]
[Date "2024.02.06"]
[Round "8"]
[White "DeArron_Fox"]
[Black "Paladin61"]
[Result "1-0"]
[WhiteElo "2514"]
[BlackElo "2656"]
[TimeControl "180+1"]
[EndTime "9:29:06 PST"]
[Termination "DeArron_Fox won by checkmate"]

1. d4 {[%clk 0:02:31]} 1... d5 {[%clk 0:02:58.4]} 2. c4 {[%clk 0:02:28]} 2... e6
{[%clk 0:02:57.9]} 3. Nc3 {[%clk 0:02:20.6]} 3... h6 {[%clk 0:02:57.1]} 4. Nf3
{[%clk 0:02:17.1]} 4... Nf6 {[%clk 0:02:55.3]} 5. Bf4 {[%clk 0:02:16.8]} 5...
Bd6 {[%clk 0:02:54]} 6. Bxd6 {[%clk 0:02:17.3]} 6... Qxd6 {[%clk 0:02:53.5]} 7.
e3 {[%clk 0:02:17.6]} 7... O-O {[%clk 0:02:53.5]} 8. Qc2 {[%clk 0:02:16.9]} 8...
Qe7 {[%clk 0:02:52.7]} 9. cxd5 {[%clk 0:02:16.2]} 9... exd5 {[%clk 0:02:51.5]}
10. Bd3 {[%clk 0:02:16.8]} 10... Nbd7 {[%clk 0:02:48.5]} 11. O-O {[%clk
0:02:15.8]} 11... c6 {[%clk 0:02:48.4]} 12. Rae1 {[%clk 0:02:15]} 12... Re8
{[%clk 0:02:45.1]} 13. Nd2 {[%clk 0:02:14.5]} 13... Nb6 {[%clk 0:02:39.1]} 14.
Nb3 {[%clk 0:02:09.7]} 14... Be6 {[%clk 0:02:07.5]} 15. f3 {[%clk 0:01:54.6]}
15... a5 {[%clk 0:01:50.8]} 16. Qf2 {[%clk 0:01:31.5]} 16... a4 {[%clk
0:01:29.3]} 17. Nc5 {[%clk 0:01:30.2]} 17... a3 {[%clk 0:01:29.4]} 18. b3 {[%clk
0:01:25.8]} 18... Nbd7 {[%clk 0:01:28.8]} 19. Nxd7 {[%clk 0:01:20.8]} 19... Nxd7
{[%clk 0:01:22.8]} 20. e4 {[%clk 0:01:15.9]} 20... Qb4 {[%clk 0:01:19.9]} 21.
Ne2 {[%clk 0:01:13.7]} 21... c5 {[%clk 0:01:08]} 22. exd5 {[%clk 0:00:41.3]}
22... Bxd5 {[%clk 0:01:03]} 23. Nf4 {[%clk 0:00:41.4]} 23... Bc6 {[%clk
0:01:03.1]} 24. Bc4 {[%clk 0:00:25]} 24... b5 {[%clk 0:00:58.4]} 25. Bd5 {[%clk
0:00:02.8]} 25... Bxd5 {[%clk 0:00:12.7]} 26. Nxd5 {[%clk 0:00:03.7]} 26... Qa5
{[%clk 0:00:12.3]} 27. dxc5 {[%clk 0:00:03.2]} 27... Ne5 {[%clk 0:00:08.7]} 28.
c6 {[%clk 0:00:02]} 28... Nxc6 {[%clk 0:00:07]} 29. Rxe8+ {[%clk 0:00:02.9]}
29... Rxe8 {[%clk 0:00:07.3]} 30. Qc5 {[%clk 0:00:03.8]} 30... Ne5 {[%clk
0:00:06.6]} 31. b4 {[%clk 0:00:03.7]} 31... Qd8 {[%clk 0:00:06.3]} 32. h3 {[%clk
0:00:02.5]} 32... Nc4 {[%clk 0:00:04.8]} 33. Qxb5 {[%clk 0:00:02.6]} 33... Nd6
{[%clk 0:00:04.4]} 34. Qc6 {[%clk 0:00:02.2]} 34... Nf5 {[%clk 0:00:04.8]} 35.
Rd1 {[%clk 0:00:02.6]} 35... Rf8 {[%clk 0:00:04.7]} 36. g4 {[%clk 0:00:02]}
36... Nh4 {[%clk 0:00:04.1]} 37. Kf2 {[%clk 0:00:02.4]} 37... Qg5 {[%clk
0:00:04.3]} 38. f4 {[%clk 0:00:02.4]} 38... Qd8 {[%clk 0:00:04.4]} 39. Kg3
{[%clk 0:00:02.8]} 39... Ng6 {[%clk 0:00:04.5]} 40. f5 {[%clk 0:00:02.6]} 40...
Qh4+ {[%clk 0:00:04.6]} 41. Kg2 {[%clk 0:00:01.9]} 41... Ne5 {[%clk 0:00:05.5]}
42. Qd6 {[%clk 0:00:01.9]} 42... Nc4 {[%clk 0:00:05.6]} 43. Ne7+ {[%clk
0:00:02.1]} 43... Kh7 {[%clk 0:00:05.3]} 44. Qd3 {[%clk 0:00:02]} 44... Ne5
{[%clk 0:00:04.3]} 45. Qe4 {[%clk 0:00:01.8]} 45... Qxe7 {[%clk 0:00:04]} 46.
f6+ {[%clk 0:00:02]} 46... Kg8 {[%clk 0:00:02.7]} 47. fxe7 {[%clk 0:00:02.9]}
47... Re8 {[%clk 0:00:03.4]} 48. Qxe5 {[%clk 0:00:03.4]} 48... f6 {[%clk
0:00:03.7]} 49. Qe6+ {[%clk 0:00:04]} 49... Kh7 {[%clk 0:00:04.2]} 50. Rd8
{[%clk 0:00:04.9]} 50... Rxe7 {[%clk 0:00:04.3]} 51. Qxe7 {[%clk 0:00:05.4]}
51... Kg6 {[%clk 0:00:04.6]} 52. Rd7 {[%clk 0:00:06.3]} 52... Kg5 {[%clk
0:00:05.5]} 53. Qxg7+ {[%clk 0:00:07.2]} 53... Kh4 {[%clk 0:00:06]} 54. Qxf6#
{[%clk 0:00:07.6]} 1-0

[Event "Early-Titled-Tuesday-Blitz-February-06-2024"]
[Site "Chess.com"]
[Date "2024.02.06"]
[Round "8"]
[White "noblerone"]
[Black "Shivagami"]
[Result "1-0"]
[WhiteElo "2457"]
[BlackElo "2245"]
[TimeControl "180+1"]
[EndTime "9:29:06 PST"]
[Termination "noblerone won on time"]

1. d4 {[%clk 0:02:51.6]} 1... Nf6 {[%clk 0:02:59.2]} 2. c4 {[%clk 0:02:50.6]}
2... c5 {[%clk 0:02:55.3]} 3. d5 {[%clk 0:02:48]} 3... e6 {[%clk 0:02:55.4]} 4.
Nc3 {[%clk 0:02:46.9]} 4... exd5 {[%clk 0:02:56.1]} 5. cxd5 {[%clk 0:02:47.8]}
5... d6 {[%clk 0:02:56]} 6. Nf3 {[%clk 0:02:47.6]} 6... g6 {[%clk 0:02:56.5]} 7.
h3 {[%clk 0:02:46.5]} 7... Bg7 {[%clk 0:02:56.6]} 8. Bf4 {[%clk 0:02:47.2]} 8...
a6 {[%clk 0:02:54.1]} 9. a4 {[%clk 0:02:47.2]} 9... O-O {[%clk 0:02:54.1]} 10.
e3 {[%clk 0:02:47.7]} 10... Ne8 {[%clk 0:02:43.7]} 11. Be2 {[%clk 0:02:35.3]}
11... Nd7 {[%clk 0:02:43.6]} 12. O-O {[%clk 0:02:28.7]} 12... Qe7 {[%clk
0:02:42.7]} 13. Nd2 {[%clk 0:02:26.3]} 13... Ne5 {[%clk 0:02:41.2]} 14. Nc4
{[%clk 0:02:26.2]} 14... Nxc4 {[%clk 0:02:24.7]} 15. Bxc4 {[%clk 0:02:24.9]}
15... Nc7 {[%clk 0:02:25.3]} 16. a5 {[%clk 0:02:21.1]} 16... Bd7 {[%clk
0:02:23]} 17. Qb3 {[%clk 0:02:17.4]} 17... Rab8 {[%clk 0:02:21]} 18. Qb6 {[%clk
0:02:16.2]} 18... Ne8 {[%clk 0:02:15.1]} 19. Bxa6 {[%clk 0:02:07.4]} 19... g5
{[%clk 0:01:39.6]} 20. Bh2 {[%clk 0:02:03.5]} 20... f5 {[%clk 0:01:31.6]} 21.
Rfe1 {[%clk 0:01:47.3]} 21... g4 {[%clk 0:01:21.4]} 22. hxg4 {[%clk 0:01:44.5]}
22... fxg4 {[%clk 0:01:21.6]} 23. Bg3 {[%clk 0:01:41.3]} 23... Be5 {[%clk
0:01:03.7]} 24. Bd3 {[%clk 0:01:31]} 24... Bxg3 {[%clk 0:01:00.4]} 25. fxg3
{[%clk 0:01:31.9]} 25... Qe5 {[%clk 0:00:55.1]} 26. Qb3 {[%clk 0:01:17.1]} 26...
Qxg3 {[%clk 0:00:52.4]} 27. Qc2 {[%clk 0:01:11.3]} 27... Nf6 {[%clk 0:00:40.9]}
28. Qf2 {[%clk 0:01:01.8]} 28... Qxf2+ {[%clk 0:00:36.4]} 29. Kxf2 {[%clk
0:01:02.7]} 29... Nxd5+ {[%clk 0:00:33.7]} 30. Kg3 {[%clk 0:01:02.6]} 30... Nb4
{[%clk 0:00:29.2]} 31. Bc4+ {[%clk 0:01:00.7]} 31... Kg7 {[%clk 0:00:29.3]} 32.
Rad1 {[%clk 0:00:58.8]} 32... Rbe8 {[%clk 0:00:18.5]} 33. Rxd6 {[%clk
0:00:57.6]} 33... Re7 {[%clk 0:00:17.7]} 34. Re2 {[%clk 0:00:53.7]} 34... Rfe8
{[%clk 0:00:15.2]} 35. e4 {[%clk 0:00:49.6]} 35... Bc6 {[%clk 0:00:09.3]} 36.
Kxg4 {[%clk 0:00:39.2]} 36... Bxe4 {[%clk 0:00:09.6]} 37. Kg3 {[%clk 0:00:25.2]}
37... Bc6 {[%clk 0:00:06.8]} 38. Rxe7+ {[%clk 0:00:25.2]} 38... Rxe7 {[%clk
0:00:07.7]} 39. Be6 {[%clk 0:00:23.6]} 39... Kf8 {[%clk 0:00:04.5]} 40. Kf2
{[%clk 0:00:14.5]} 40... Nc2 {[%clk 0:00:04.9]} 41. g4 {[%clk 0:00:12.4]} 41...
Nd4 {[%clk 0:00:05.4]} 42. Bf5 {[%clk 0:00:12.4]} 42... Nxf5 {[%clk 0:00:02.1]}
43. gxf5 {[%clk 0:00:13.3]} 43... Re5 {[%clk 0:00:01.8]} 44. f6 {[%clk
0:00:12.8]} 44... Rf5+ {[%clk 0:00:02]} 45. Ke3 {[%clk 0:00:13.3]} 45... Kf7
{[%clk 0:00:02.6]} 46. Ne4 {[%clk 0:00:13.1]} 46... Bxe4 {[%clk 0:00:02.4]} 47.
Kxe4 {[%clk 0:00:14]} 47... Rxf6 {[%clk 0:00:03]} 48. Rd7+ {[%clk 0:00:14.6]}
48... Kg6 {[%clk 0:00:02.5]} 49. Rxb7 {[%clk 0:00:15]} 49... Ra6 {[%clk
0:00:02.7]} 50. Rb6+ {[%clk 0:00:15.4]} 50... Rxb6 {[%clk 0:00:01.2]} 51. axb6
{[%clk 0:00:16.3]} 51... Kf7 {[%clk 0:00:01.2]} 52. b7 {[%clk 0:00:16.7]} 1-0

[Event "Early-Titled-Tuesday-Blitz-February-06-2024"]
[Site "Chess.com"]
[Date "2024.02.06"]
[Round "8"]
[White "dianamirza"]
[Black "frequentblunders"]
[Result "1/2-1/2"]
[WhiteElo "1957"]
[BlackElo "2167"]
[TimeControl "180+1"]
[EndTime "9:29:08 PST"]
[Termination "Game drawn - insufficient material"]

1. e4 {[%clk 0:02:44.9]} 1... e6 {[%clk 0:03:00.6]} 2. d3 {[%clk 0:02:44.1]}
2... c5 {[%clk 0:02:58.9]} 3. Nd2 {[%clk 0:02:43.9]} 3... Nc6 {[%clk 0:02:54.7]}
4. Ngf3 {[%clk 0:02:44.3]} 4... d5 {[%clk 0:02:50.5]} 5. g3 {[%clk 0:02:41.6]}
5... Nf6 {[%clk 0:02:49.5]} 6. Bg2 {[%clk 0:02:37.9]} 6... g6 {[%clk 0:02:49.3]}
7. O-O {[%clk 0:02:37.2]} 7... Bg7 {[%clk 0:02:47]} 8. Re1 {[%clk 0:02:29.4]}
8... O-O {[%clk 0:02:46.3]} 9. Qe2 {[%clk 0:02:29.1]} 9... b5 {[%clk 0:02:38.3]}
10. h4 {[%clk 0:02:21.9]} 10... c4 {[%clk 0:02:24.3]} 11. Nf1 {[%clk 0:02:11.9]}
11... Qb6 {[%clk 0:02:08.9]} 12. N1h2 {[%clk 0:02:04.4]} 12... Bb7 {[%clk
0:01:53.3]} 13. e5 {[%clk 0:01:51.5]} 13... Nd7 {[%clk 0:01:53]} 14. h5 {[%clk
0:01:49.2]} 14... Ncxe5 {[%clk 0:01:49.3]} 15. Nxe5 {[%clk 0:01:44]} 15... Nxe5
{[%clk 0:01:46.8]} 16. hxg6 {[%clk 0:01:37.3]} 16... hxg6 {[%clk 0:01:34.9]} 17.
Bf4 {[%clk 0:01:33.3]} 17... Nd7 {[%clk 0:01:26.6]} 18. Ng4 {[%clk 0:01:31.2]}
18... Rae8 {[%clk 0:01:10.2]} 19. Bh6 {[%clk 0:01:28.1]} 19... f6 {[%clk
0:00:58.5]} 20. Qd2 {[%clk 0:01:15.4]} 20... g5 {[%clk 0:00:51.5]} 21. Bxg7
{[%clk 0:00:52.6]} 21... Kxg7 {[%clk 0:00:52.4]} 22. a4 {[%clk 0:00:37]} 22...
a6 {[%clk 0:00:50.7]} 23. axb5 {[%clk 0:00:36.6]} 23... axb5 {[%clk 0:00:51.6]}
24. Re2 {[%clk 0:00:26]} 24... e5 {[%clk 0:00:50.5]} 25. Rae1 {[%clk 0:00:25.2]}
25... d4 {[%clk 0:00:48.2]} 26. Nh2 {[%clk 0:00:23]} 26... Bxg2 {[%clk
0:00:47.9]} 27. Kxg2 {[%clk 0:00:23.1]} 27... Qc6+ {[%clk 0:00:48.2]} 28. Kg1
{[%clk 0:00:22.3]} 28... c3 {[%clk 0:00:43.9]} 29. bxc3 {[%clk 0:00:22.1]} 29...
Qxc3 {[%clk 0:00:44.8]} 30. Qxc3 {[%clk 0:00:21.1]} 30... dxc3 {[%clk
0:00:44.7]} 31. Rb1 {[%clk 0:00:19]} 31... Rb8 {[%clk 0:00:42]} 32. Re4 {[%clk
0:00:17.9]} 32... Rb6 {[%clk 0:00:37.1]} 33. Rb3 {[%clk 0:00:17.1]} 33... Rc8
{[%clk 0:00:37]} 34. Reb4 {[%clk 0:00:17.1]} 34... Rc5 {[%clk 0:00:36.7]} 35.
Nf3 {[%clk 0:00:15.9]} 35... Kf7 {[%clk 0:00:34.7]} 36. d4 {[%clk 0:00:14.8]}
36... exd4 {[%clk 0:00:30.5]} 37. Nxd4 {[%clk 0:00:15.7]} 37... Ne5 {[%clk
0:00:30.5]} 38. Nxb5 {[%clk 0:00:15.7]} 38... Kg6 {[%clk 0:00:26.8]} 39. Kf1
{[%clk 0:00:10.8]} 39... Nc4 {[%clk 0:00:23.6]} 40. Rxc3 {[%clk 0:00:09.2]}
40... Nd2+ {[%clk 0:00:23.7]} 41. Ke2 {[%clk 0:00:09]} 41... Rbxb5 {[%clk
0:00:23.1]} 42. Rxb5 {[%clk 0:00:05.8]} 42... Rxb5 {[%clk 0:00:20.3]} 43. Kxd2
{[%clk 0:00:06.2]} 43... Rf5 {[%clk 0:00:19.3]} 44. f4 {[%clk 0:00:04.9]} 44...
gxf4 {[%clk 0:00:19]} 45. gxf4 {[%clk 0:00:05.8]} 45... Rxf4 {[%clk 0:00:19.9]}
46. Rg3+ {[%clk 0:00:05.8]} 46... Kf5 {[%clk 0:00:20]} 47. Ke3 {[%clk
0:00:06.1]} 47... Ke5 {[%clk 0:00:18.9]} 48. Rf3 {[%clk 0:00:05.9]} 48... Re4+
{[%clk 0:00:18.2]} 49. Kd3 {[%clk 0:00:06.1]} 49... f5 {[%clk 0:00:18.1]} 50.
Re3 {[%clk 0:00:06.4]} 50... Kd5 {[%clk 0:00:15.5]} 51. Rxe4 {[%clk 0:00:06.7]}
51... fxe4+ {[%clk 0:00:16.4]} 52. Ke3 {[%clk 0:00:07.3]} 52... Ke5 {[%clk
0:00:16.4]} 53. c4 {[%clk 0:00:07.6]} 53... Kf5 {[%clk 0:00:15.3]} 54. c5 {[%clk
0:00:07.9]} 54... Ke5 {[%clk 0:00:15.3]} 55. c6 {[%clk 0:00:08.3]} 55... Kd6
{[%clk 0:00:15.5]} 56. c7 {[%clk 0:00:08.5]} 56... Kxc7 {[%clk 0:00:15.8]} 57.
Kxe4 {[%clk 0:00:09.4]} 1/2-1/2

[Event "Early-Titled-Tuesday-Blitz-February-06-2024"]
[Site "Chess.com"]
[Date "2024.02.06"]
[Round "8"]
[White "Sina_Movahed"]
[Black "Sam_ChessMood"]
[Result "1-0"]
[WhiteElo "3031"]
[BlackElo "2915"]
[TimeControl "180+1"]
[EndTime "9:29:11 PST"]
[Termination "Sina_Movahed won on time"]

1. e4 {[%clk 0:02:55.7]} 1... c5 {[%clk 0:03:00]} 2. d4 {[%clk 0:02:53.3]} 2...
cxd4 {[%clk 0:02:59.6]} 3. Nf3 {[%clk 0:02:54.2]} 3... d6 {[%clk 0:02:58.4]} 4.
Nxd4 {[%clk 0:02:54]} 4... Nf6 {[%clk 0:02:58.3]} 5. Nc3 {[%clk 0:02:53.5]} 5...
a6 {[%clk 0:02:58.3]} 6. h3 {[%clk 0:02:39.7]} 6... e5 {[%clk 0:02:58.1]} 7. Nf3
{[%clk 0:02:31]} 7... h6 {[%clk 0:02:56.6]} 8. Bc4 {[%clk 0:02:29.2]} 8... Be6
{[%clk 0:02:54]} 9. Bb3 {[%clk 0:02:17.4]} 9... Be7 {[%clk 0:02:50.1]} 10. O-O
{[%clk 0:02:17.3]} 10... O-O {[%clk 0:02:46.7]} 11. Be3 {[%clk 0:02:17.7]} 11...
Nbd7 {[%clk 0:02:46.6]} 12. Qe2 {[%clk 0:02:17.7]} 12... Rc8 {[%clk 0:02:44]}
13. Rfd1 {[%clk 0:02:18.1]} 13... b5 {[%clk 0:02:39.6]} 14. Nh4 {[%clk
0:02:17.3]} 14... b4 {[%clk 0:02:29.3]} 15. Nd5 {[%clk 0:02:10.3]} 15... Bxd5
{[%clk 0:02:16.6]} 16. exd5 {[%clk 0:02:07.2]} 16... a5 {[%clk 0:02:01.6]} 17.
Nf5 {[%clk 0:02:07.3]} 17... Nc5 {[%clk 0:02:00.7]} 18. Bc4 {[%clk 0:02:03.1]}
18... Qd7 {[%clk 0:01:44.4]} 19. g4 {[%clk 0:01:54.9]} 19... g6 {[%clk
0:01:21.9]} 20. Bb5 {[%clk 0:01:45]} 20... Qd8 {[%clk 0:01:16.8]} 21. Nxh6+
{[%clk 0:01:43]} 21... Kg7 {[%clk 0:01:17.1]} 22. g5 {[%clk 0:01:42.3]} 22...
Nh5 {[%clk 0:01:01.1]} 23. h4 {[%clk 0:01:40.4]} 23... f5 {[%clk 0:00:53.8]} 24.
gxf6+ {[%clk 0:01:38.3]} 24... Rxf6 {[%clk 0:00:49.5]} 25. Ng4 {[%clk
0:01:35.9]} 25... Nf4 {[%clk 0:00:44.7]} 26. Qf1 {[%clk 0:01:21.7]} 26... Rf5
{[%clk 0:00:44.2]} 27. Bd3 {[%clk 0:01:13.2]} 27... Ncxd3 {[%clk 0:00:43.5]} 28.
cxd3 {[%clk 0:01:14.1]} 28... Bxh4 {[%clk 0:00:41]} 29. Rac1 {[%clk 0:01:11.5]}
29... Rxc1 {[%clk 0:00:19.5]} 30. Rxc1 {[%clk 0:01:12.4]} 30... Qg5 {[%clk
0:00:11.3]} 31. f3 {[%clk 0:01:01.9]} 31... Rf7 {[%clk 0:00:09.4]} 32. Rc4
{[%clk 0:01:00.1]} 32... Bg3 {[%clk 0:00:09.3]} 33. Qg2 {[%clk 0:00:51.6]} 33...
Qh4 {[%clk 0:00:06.3]} 34. Qh1 {[%clk 0:00:45.8]} 34... Qxh1+ {[%clk 0:00:04.5]}
35. Kxh1 {[%clk 0:00:46.7]} 35... Nxd5 {[%clk 0:00:05.1]} 36. Bh6+ {[%clk
0:00:44.3]} 36... Kh7 {[%clk 0:00:05.5]} 37. Rc6 {[%clk 0:00:43.8]} 37... Rxf3
{[%clk 0:00:03]} 38. Rxd6 {[%clk 0:00:43.3]} 38... Bf4 {[%clk 0:00:01.9]} 39.
Rd7+ {[%clk 0:00:40.6]} 39... Kg8 {[%clk 0:00:02.1]} 40. Rxd5 {[%clk 0:00:38.2]}
40... Rh3+ {[%clk 0:00:02.4]} 41. Kg1 {[%clk 0:00:36.7]} 41... Rg3+ {[%clk
0:00:02.9]} 42. Kf2 {[%clk 0:00:33.7]} 42... Rxg4 {[%clk 0:00:03.3]} 43. Bxf4
{[%clk 0:00:32.6]} 43... Rxf4+ {[%clk 0:00:04.2]} 44. Ke3 {[%clk 0:00:31.9]}
44... Rh4 {[%clk 0:00:04.5]} 45. Rxe5 {[%clk 0:00:29.9]} 45... Rh2 {[%clk
0:00:04.6]} 46. Rxa5 {[%clk 0:00:29.3]} 46... Rxb2 {[%clk 0:00:04.7]} 47. Ra7
{[%clk 0:00:29.9]} 47... g5 {[%clk 0:00:04.5]} 48. Kd4 {[%clk 0:00:22.1]} 48...
g4 {[%clk 0:00:04.3]} 49. Kc4 {[%clk 0:00:21.6]} 49... g3 {[%clk 0:00:04.5]} 50.
Ra5 {[%clk 0:00:20.6]} 50... g2 {[%clk 0:00:04.5]} 51. Rg5+ {[%clk 0:00:21.2]}
51... Kf8 {[%clk 0:00:05]} 52. d4 {[%clk 0:00:21.2]} 52... Ke7 {[%clk
0:00:05.4]} 53. Rg6 {[%clk 0:00:21]} 53... Kf7 {[%clk 0:00:05.4]} 54. Rg3 {[%clk
0:00:20.9]} 1-0

[Event "Early-Titled-Tuesday-Blitz-February-06-2024"]
[Site "Chess.com"]
[Date "2024.02.06"]
[Round "8"]
[White "Djager97"]
[Black "Yaacovn"]
[Result "0-1"]
[WhiteElo "2625"]
[BlackElo "2844"]
[TimeControl "180+1"]
[EndTime "9:29:11 PST"]
[Termination "Yaacovn won on time"]

1. e4 {[%clk 0:03:00.9]} 1... c6 {[%clk 0:02:58.2]} 2. d4 {[%clk 0:03:00.2]}
2... d5 {[%clk 0:02:58.7]} 3. exd5 {[%clk 0:03:00]} 3... cxd5 {[%clk 0:02:58.8]}
4. Bd3 {[%clk 0:02:58.2]} 4... Nf6 {[%clk 0:02:59]} 5. h3 {[%clk 0:02:54.9]}
5... Nc6 {[%clk 0:02:59.2]} 6. c3 {[%clk 0:02:54.3]} 6... Ne4 {[%clk 0:02:59.6]}
7. Nf3 {[%clk 0:02:53.6]} 7... Bf5 {[%clk 0:02:59.7]} 8. O-O {[%clk 0:02:50.2]}
8... e6 {[%clk 0:03:00.1]} 9. Bf4 {[%clk 0:02:38.7]} 9... g5 {[%clk 0:02:49.1]}
10. Bg3 {[%clk 0:01:53.6]} 10... h5 {[%clk 0:02:46.2]} 11. Bxe4 {[%clk
0:01:51.4]} 11... Bxe4 {[%clk 0:02:39.3]} 12. Nbd2 {[%clk 0:01:51.5]} 12... Bd3
{[%clk 0:02:35.3]} 13. Re1 {[%clk 0:01:50.6]} 13... Be7 {[%clk 0:02:35.8]} 14.
Ne5 {[%clk 0:01:47.5]} 14... Bf5 {[%clk 0:02:31.1]} 15. Nxc6 {[%clk 0:01:43.6]}
15... bxc6 {[%clk 0:02:31.4]} 16. Nf3 {[%clk 0:01:42.2]} 16... f6 {[%clk
0:02:30.3]} 17. Qa4 {[%clk 0:01:36.7]} 17... Qd7 {[%clk 0:02:29.9]} 18. c4
{[%clk 0:01:35.1]} 18... dxc4 {[%clk 0:02:26.5]} 19. Qxc4 {[%clk 0:01:32.8]}
19... Qd5 {[%clk 0:02:26.6]} 20. Rac1 {[%clk 0:01:32.2]} 20... Be4 {[%clk
0:02:16.5]} 21. Qe2 {[%clk 0:00:38.7]} 21... Bf5 {[%clk 0:02:06.7]} 22. Rc3
{[%clk 0:00:33.3]} 22... Kf7 {[%clk 0:02:05.5]} 23. Rec1 {[%clk 0:00:33.3]}
23... Rhc8 {[%clk 0:02:04.3]} 24. b3 {[%clk 0:00:32.9]} 24... h4 {[%clk
0:02:03.9]} 25. Bh2 {[%clk 0:00:31.9]} 25... a5 {[%clk 0:02:04.5]} 26. Nd2
{[%clk 0:00:31.6]} 26... a4 {[%clk 0:02:02.8]} 27. Nc4 {[%clk 0:00:31.4]} 27...
Qb5 {[%clk 0:01:55.1]} 28. Qf3 {[%clk 0:00:21.4]} 28... Kg6 {[%clk 0:01:44.8]}
29. Ne3 {[%clk 0:00:21.3]} 29... axb3 {[%clk 0:01:42.4]} 30. axb3 {[%clk
0:00:21.9]} 30... Ba3 {[%clk 0:01:38.5]} 31. Rd1 {[%clk 0:00:19.7]} 31... Qd5
{[%clk 0:01:34.9]} 32. Nxd5 {[%clk 0:00:18.9]} 32... cxd5 {[%clk 0:01:32.1]} 33.
Rxc8 {[%clk 0:00:15.5]} 33... Rxc8 {[%clk 0:01:32.2]} 34. Qe3 {[%clk 0:00:14.8]}
34... Rc2 {[%clk 0:01:28.7]} 35. g4 {[%clk 0:00:13.1]} 35... hxg3 {[%clk
0:01:27.7]} 36. Bxg3 {[%clk 0:00:13.7]} 36... Bxh3 {[%clk 0:01:26.3]} 37. Kh2
{[%clk 0:00:12.4]} 37... Bf5 {[%clk 0:01:26.4]} 38. Ra1 {[%clk 0:00:12.9]} 38...
Bb2 {[%clk 0:01:24.8]} 39. Ra7 {[%clk 0:00:12.8]} 39... Be4 {[%clk 0:01:20.8]}
40. Qe1 {[%clk 0:00:07.3]} 40... Rc1 {[%clk 0:01:20.1]} 41. Qxc1 {[%clk
0:00:07.8]} 41... Bxc1 {[%clk 0:01:20.7]} 42. b4 {[%clk 0:00:08.3]} 42... Bb2
{[%clk 0:01:18.4]} 43. b5 {[%clk 0:00:08.2]} 43... Bxd4 {[%clk 0:01:18.8]} 44.
Rc7 {[%clk 0:00:07.7]} 44... Bd3 {[%clk 0:01:13.8]} 45. Rb7 {[%clk 0:00:05.2]}
45... f5 {[%clk 0:01:09.2]} 46. Bc7 {[%clk 0:00:04.6]} 46... Bxf2 {[%clk
0:01:08.7]} 47. b6 {[%clk 0:00:04.5]} 47... Be4 {[%clk 0:01:08.2]} 48. Rb8
{[%clk 0:00:04.5]} 48... d4 {[%clk 0:01:08.7]} 49. b7 {[%clk 0:00:04.7]} 49...
Bxb7 {[%clk 0:01:05.5]} 50. Rxb7 {[%clk 0:00:05.6]} 50... f4 {[%clk 0:01:04.4]}
51. Kg2 {[%clk 0:00:05.2]} 51... Be3 {[%clk 0:01:04.3]} 52. Kf3 {[%clk
0:00:05.4]} 52... d3 {[%clk 0:01:03.4]} 53. Rb5 {[%clk 0:00:04.6]} 53... d2
{[%clk 0:01:02.9]} 54. Rb1 {[%clk 0:00:03.5]} 54... Kf5 {[%clk 0:01:03]} 55. Ba5
{[%clk 0:00:02.8]} 55... g4+ {[%clk 0:00:59.3]} 56. Ke2 {[%clk 0:00:03.1]} 56...
g3 {[%clk 0:00:59.3]} 57. Bxd2 {[%clk 0:00:03.1]} 57... Bf2 {[%clk 0:00:56.8]}
58. Rb5+ {[%clk 0:00:01.5]} 58... Ke4 {[%clk 0:00:54.1]} 59. Rb4+ {[%clk
0:00:01.4]} 59... Kf5 {[%clk 0:00:53.4]} 60. Rxf4+ {[%clk 0:00:02.1]} 60... Ke5
{[%clk 0:00:53.2]} 61. Kf3 {[%clk 0:00:02.3]} 61... Kd5 {[%clk 0:00:48.1]} 62.
Rg4 {[%clk 0:00:02.8]} 62... e5 {[%clk 0:00:49]} 63. Be3 {[%clk 0:00:02.7]}
63... Be1 {[%clk 0:00:47.1]} 64. Rg5 {[%clk 0:00:03.3]} 64... Ke6 {[%clk
0:00:46.1]} 65. Ke4 {[%clk 0:00:03.9]} 65... Kf6 {[%clk 0:00:45.5]} 66. Rf5+
{[%clk 0:00:04.1]} 66... Kg6 {[%clk 0:00:45.5]} 67. Rxe5 {[%clk 0:00:04.4]}
67... g2 {[%clk 0:00:44.1]} 68. Bg1 {[%clk 0:00:03.5]} 68... Bg3 {[%clk
0:00:42.5]} 69. Rd5 {[%clk 0:00:03]} 69... Bh2 {[%clk 0:00:43.4]} 70. Kf3 {[%clk
0:00:02.7]} 70... Kf7 {[%clk 0:00:44.3]} 71. Bxh2 {[%clk 0:00:02]} 71... Ke6
{[%clk 0:00:45.2]} 0-1